[Event "CCT Airthings Masters Play-In 2023"]
[Site "Online"]
[Date "2023.02.03"]
[Round "2"]
[White "BogdanDeac"]
[Black "Duhless"]
[Result "1/2-1/2"]
[ECO "B24"]
[WhiteElo "2522"]
[BlackElo "2655"]
[Annotator "TA"]
[PlyCount "46"]
[EventDate "2023.02.03"]
[EventType "swiss"]
[EventCountry "NET"]
[SourceTitle "playchess.com"]
[Source "ChessBase"]
[SourceQuality "1"]
[TimeControl "600+2"]

{[%evp 16,46,20,0,0,0,0,0,0,-14,0,0,0,10,0,-15,0,-24,0,0,0,0,0,0,0,0,0,0,0,0,0,0,0]} 1. e4 {[%emt 0:00:03]} c5 {[%emt 0:00:06]} 2. Nf3 {[%emt 0:00:02]} e6 {[%emt 0:00:02]} 3. g3 {[%emt 0:00:05]} d5 {[%emt 0:00:03]} 4. Nc3 {[%emt 0:00:15]} Nf6 {[%emt 0:00:13]} 5. exd5 {[%emt 0:00:05]} exd5 {[%emt 0:00:00]} 6. d4 {[%emt 0:00:02]} Nc6 {[%emt 0:00:03]} 7. Bg2 {[%emt 0:00:40]} cxd4 {[%emt 0:00:02]} 8. Nxd4 {[%emt 0:00:01]} Bg4 {[%emt 0:00:01]} 9. Qd3 {[%emt 0:00:12]} Bc5 {[%emt 0:00:05] B24: Closed Sicilian: 3 g3 sidelines.} 10. Be3 {[%emt 0:00:10] [#] And now Nxc6 would win. Active counter play!} Bxd4 {[%emt 0:00:19]} 11. Bxd4 {[%emt 0:00:02]} Qe7+ {[%emt 0:00:01]} 12. Kf1 {[%emt 0:00:14] Black must now prevent Re1.} Nxd4 {[%emt 0:00:29]} 13. Qxd4 {[%emt 0:00:06][%cal Oa1e1] aiming for Re1!} O-O {[%emt 0:00:07]} 14. Re1 {[%emt 0:00:59]} (14. Bxd5 Rfd8 15. Qa4 Rxd5 16. Nxd5 Bh3+ 17. Kg1 Nxd5 $19) 14... Be6 {[%emt 0:00:03] [#]} 15. Ne2 $146 {[%emt 0:00:03]} (15. Bxd5 $2 Nxd5 16. Kg2 Nxc3 17. bxc3 Rfd8 $19) ({Predecessor:} 15. h4 Rac8 16. Qxa7 Qb4 17. Ne2 Rxc2 18. Qd4 Qxd4 19. Nxd4 Rxb2 20. Nxe6 fxe6 21. Rxe6 Ne4 22. Bxe4 Rfxf2+ 23. Ke1 Rbe2+ 24. Kd1 dxe4 25. Re1 Rxa2 {0-1 Seo,J (2469)-Vokhidov,S (2521) Titled Tuesday intern op 28th Sept blitz 2021 (9)}) 15... Qd7 {[%emt 0:01:08]} 16. Nf4 {[%emt 0:03:47]} Bf5 {[%emt 0:02:34]} 17. Nxd5 {[%emt 0:00:28] The position is equal.} (17. Bxd5 Bxc2 18. f3 Nxd5 19. Qxd5 Qxd5 20. Nxd5 Rfd8 $17) 17... Nxd5 {[%emt 0:00:11]} 18. Qxd5 {[%emt 0:00:04]} (18. Bxd5 $2 {loses.} Bh3+ 19. Ke2 (19. Kg1 $2 Rfe8 $19) 19... Rae8+ 20. Kd2 Bg2 21. Rxe8 Rxe8 $19) 18... Rad8 {[%emt 0:00:05]} 19. Qxd7 {[%emt 0:00:13]} ({Much weaker is} 19. Qxb7 Qd2 20. Qb5 Qxc2 $15) 19... Rxd7 {[%emt 0:00:01]} 20. Be4 {[%emt 0:00:38]} Bh3+ {[%emt 0:00:06]} 21. Bg2 {[%emt 0:00:11]} Bf5 {[%emt 0:00:03]} 22. Be4 {[%emt 0:00:03]} Bh3+ {[%emt 0:00:10]} 23. Bg2 {[%emt 0:00:01]} Bf5 {[%emt 0:00:05] An uneventful encounter.   Weighted Error Value: White=0.07 (flawless) /Black=0.05 (flawless)} 1/2-1/2

[Event "CCT Airthings Masters Play-In 2023"]
[Site "Online"]
[Date "2023.02.03"]
[Round "2"]
[White "GroovyKettle"]
[Black "LiemLe"]
[Result "0-1"]
[ECO "B90"]
[WhiteElo "2515"]
[BlackElo "2652"]
[Annotator "TA"]
[PlyCount "100"]
[EventDate "2023.02.03"]
[EventType "swiss"]
[EventCountry "NET"]
[SourceTitle "playchess.com"]
[Source "ChessBase"]
[SourceQuality "1"]
[TimeControl "600+2"]

{[%evp 9,100,12,19,0,0,0,21,0,9,0,0,0,0,0,0,0,0,4,0,0,0,-60,-6,-11,-7,-9,-8,-20,0,-1,0,-12,-9,-9,0,-17,0,0,0,0,0,-48,0,-24,-21,-68,-64,-64,-50,-53,-46,-233,-27,-38,-59,-129,-67,-70,-74,-82,-93,-149,-144,-140,-110,-164,-139,-133,0,0,0,0,0,0,0,-116,-93,-29967,-29967,-29964,-29967,-29967,-29968,-29966,-29968,-12360,-5106,-29966,-12847,-29984,-29985,-29988,-29988]} 1. e4 {[%emt 0:00:03]} c5 {[%emt 0:00:07]} 2. Nf3 {[%emt 0:00:01]} d6 {[%emt 0:00:01]} 3. d4 {[%emt 0:00:01]} cxd4 {[%emt 0:00:00]} 4. Nxd4 {[%emt 0:00:00]} Nf6 {[%emt 0:00:01]} 5. Nc3 {[%emt 0:00:01]} a6 {[%emt 0:00:00]} 6. h4 {[%emt 0:00:00] B90: Sicilian Najdorf: Unusual White 6th moves, 6 Be3 Ng4 and 6 Be3 e5.} e5 {[%emt 0:00:04]} 7. Nb3 {[%emt 0:00:02]} Be7 {[%emt 0:00:02]} 8. Bg5 {[%emt 0:00:02] The position is equal.} Be6 {[%emt 0:00:04]} 9. Bxf6 {[%emt 0:00:00]} Bxf6 {[%emt 0:00:00]} 10. g3 {[%emt 0:00:01]} Be7 {[%emt 0:00:03]} 11. Qd3 {[%emt 0:00:01]} Nd7 {[%emt 0:00:01]} 12. O-O-O {[%emt 0:00:01]} Nf6 {[%emt 0:00:05]} 13. f4 {[%emt 0:00:01]} b5 {[%emt 0:00:10]} 14. f5 {[%emt 0:00:02]} Bd7 {[%emt 0:00:25] [#]} 15. Rg1 $146 {[%emt 0:00:13]} (15. Kb1 $11) ({Predecessor:} 15. Be2 Bc6 16. Kb1 b4 17. Nd5 Bxd5 18. exd5 Nd7 19. Qf3 Bf6 20. Qe4 Qe7 21. Na5 {1-0 Heimann,A (2633)-Kasioumis,V (2277) Paleochora op 13th 2020 (6)}) 15... Bc6 {[%emt 0:00:58]} (15... Qb6 $15 16. Be2 b4) 16. Nd5 $11 {[%emt 0:01:03]} Bxd5 {[%emt 0:00:35]} 17. exd5 {[%emt 0:00:00]} h5 {[%emt 0:00:01]} 18. Nd2 {[%emt 0:00:07]} Rc8 {[%emt 0:00:05][%cal Ba8c8,Bc8c4,Bc4a4][%mdl 32]} 19. Ne4 {[%emt 0:00:04]} Qb6 {[%emt 0:00:19]} 20. Be2 {[%emt 0:00:07]} Rc4 {[%emt 0:00:09]} 21. Nxf6+ {[%emt 0:00:19]} Bxf6 {[%emt 0:00:00]} 22. Qb3 {[%emt 0:00:01]} Ra4 {[%emt 0:00:08]} 23. Kb1 {[%emt 0:00:05]} Ke7 {[%emt 0:00:07]} 24. Rge1 {[%emt 0:00:11]} Rd4 {[%emt 0:00:38]} 25. c4 {[%emt 0:00:19]} (25. Qe3 $11) 25... Rb8 {[%emt 0:00:14]} (25... Rxd1+ $15 {deserves consideration.} 26. Bxd1 Rc8) 26. Rxd4 {[%emt 0:00:12]} (26. cxb5 $5 {[%cal Rd1d4]} e4 27. Bxh5 $11 (27. bxa6 $2 Rb4 $19 {[%mdl 64] Skewer})) 26... Qxd4 {[%emt 0:00:01]} 27. cxb5 {[%emt 0:00:03] White is weak on the dark squares} (27. Bxh5 $11 Qf2 28. Re4) 27... Qf2 $15 {[%emt 0:00:56][%csl LRe1,LRf5]} 28. Qc3 {[%emt 0:00:07] Threatens to win with Qc7+.} Kf8 $1 {[%emt 0:00:04]} (28... axb5 29. Qc7+ (29. Bxh5 Qxf5+ 30. Qc2 Qxc2+ 31. Kxc2 g6 $15) 29... Kf8 30. Qxb8+ Ke7 31. Qc7+ Kf8 32. Qc8+ Ke7 33. Rc1 Bxh4 34. Bxh5) (28... Rc8 29. Qxc8 Qxe1+ 30. Qc1 Qxe2 31. Qc7+ Kf8 32. Qc8+ Ke7 33. Qc7+ Kf8 34. Qc8+ Ke7 35. Qc7+ $11) 29. a4 {[%emt 0:00:25]} (29. bxa6 $2 {loses.} e4 30. Qc1 Rxb2+ 31. Qxb2 Bxb2 32. Kxb2 Qxe1 $19) 29... e4 {[%emt 0:00:06]} 30. Qb4 {[%emt 0:00:11]} ({White must play} 30. Qc1 $1 $15) 30... Qxg3 $2 {[%emt 0:00:06]} ({Black should play} 30... Be5 $19 31. f6 gxf6) 31. Rc1 {[%emt 0:00:06]} axb5 {[%emt 0:00:05]} (31... Qxh4 $2 32. Qxd6+ Kg8 33. Qxb8+ $18) 32. Bxb5 {[%emt 0:00:03] [#]} (32. a5 $15) 32... Qd3+ {[%emt 0:01:43]} ({Weaker is} 32... Bxh4 33. Qxe4 Bf6 34. Re1) (32... e3 $1 $17 {[%cal Of8g8]} 33. Qc4 Qf2) 33. Ka1 {[%emt 0:00:56]} Qxd5 {[%emt 0:00:03] Strongly threatening ...e3.} 34. Re1 {[%emt 0:00:04]} Kg8 {[%emt 0:00:10] aiming for ...Rc8.} 35. Rxe4 {[%emt 0:00:17]} (35. Qxe4 $142 Qb3 36. Re2) 35... Qxf5 $17 {[%emt 0:00:04] Black is more active.} 36. Ka2 {[%emt 0:01:32]} d5 {[%emt 0:00:19][%cal Bd6d5,Bd5d4,Bd4d3,Bd3d2][%mdl 32]} 37. Re2 {[%emt 0:00:22]} (37. Re8+ $17 Rxe8 38. Bxe8) 37... d4 {[%emt 0:00:15]} 38. Qb3 {[%emt 0:00:11][%cal Ob5d3]} Bxh4 {[%emt 0:00:12]} (38... g6 $17 39. Bd3 Rxb3 40. Bxf5 Re3 41. Rxe3 dxe3) 39. Bd3 $1 $11 {[%emt 0:00:11][%mdl 64] [#] Discovered Attack} Qf4 {[%emt 0:00:50]} 40. Qd5 {[%emt 0:00:15] Prevents Qd6} g6 {[%emt 0:00:18]} 41. Bxg6 {[%emt 0:00:24] Hoping for Bd3.} d3 $1 $36 {[%emt 0:00:01][%mdl 2112] Discovered Attack. Black has good play.} 42. Re4 {[%emt 0:00:25]} (42. Rg2 $11 {keeps the balance.} Qxa4+ 43. Kb1 Qd1+ 44. Ka2 Qa4+ 45. Kb1 Qd1+ 46. Ka2 Qa4+) 42... Qf6 $1 $17 {[%emt 0:00:09][%csl Gb8,LRb2,LRg6][%cal Rf6b2] Chess con chili.} 43. Qxf7+ $2 {[%emt 0:00:35][%mdl 8192]} Qxf7+ {[%emt 0:00:01]} 44. Bxf7+ {[%emt 0:00:00]} Kxf7 {[%emt 0:00:00]} 45. Rxh4 {[%emt 0:00:00] KR-KR} Rd8 {[%emt 0:00:02]} 46. Rh1 {[%emt 0:00:02]} d2 {[%emt 0:00:02]} 47. Rd1 {[%emt 0:00:02]} h4 {[%emt 0:00:01][%cal Bh5h4,Bh4h3,Bh3h2][%mdl 32]} 48. Kb3 {[%emt 0:00:00]} h3 {[%emt 0:00:01] ( -> ...h2)} 49. Kc2 {[%emt 0:00:01]} h2 {[%emt 0:00:01]} 50. b4 {[%emt 0:00:06]} Rc8+ {[%emt 0:00:04] Weighted Error Value: White=0.53/Black=0.17 (very precise)} 0-1

[Event "CCT Airthings Masters Play-In 2023"]
[Site "Online"]
[Date "2023.02.03"]
[Round "2"]
[White "rpragchess"]
[Black "Chan, Chak Man"]
[Result "1-0"]
[ECO "C88"]
[WhiteElo "2510"]
[BlackElo "1862"]
[Annotator "TA"]
[PlyCount "96"]
[EventDate "2023.02.03"]
[EventType "swiss"]
[EventCountry "NET"]
[SourceTitle "playchess.com"]
[Source "ChessBase"]
[SourceQuality "1"]
[TimeControl "600+2"]

{[%evp 15,96,18,6,0,21,7,23,15,17,22,28,33,48,43,39,43,43,55,58,48,135,126,120,121,118,118,117,116,97,71,70,56,95,95,94,88,145,146,145,121,175,104,101,59,77,93,116,102,112,102,194,177,193,169,251,254,256,254,252,238,227,214,716,304,1078,811,766,746,750,517,473,478,1427,710,679,679,1514,1360,29985,29986,29986,29987,29988]} 1. e4 {[%emt 0:00:06]} e5 {[%emt 0:00:13]} 2. Nf3 {[%emt 0:00:02]} Nc6 {[%emt 0:00:01]} 3. Bb5 {[%emt 0:00:01]} a6 {[%emt 0:00:06]} 4. Ba4 {[%emt 0:00:01]} Nf6 {[%emt 0:00:02]} 5. O-O {[%emt 0:00:01]} Be7 {[%emt 0:00:04]} 6. Re1 {[%emt 0:00:01]} b5 {[%emt 0:00:06]} 7. Bb3 {[%emt 0:00:01]} O-O {[%emt 0:00:01]} 8. d3 {[%emt 0:00:04]} d6 {[%emt 0:00:20]} 9. Bd2 {[%emt 0:00:01] C88: Closed Ruy Lopez: Anti-Marshall Systems.} h6 {[%emt 0:00:13]} 10. h3 {[%emt 0:00:02]} Re8 {[%emt 0:00:10]} 11. a3 {[%emt 0:00:26] White has an edge.} Bf8 {[%emt 0:00:04]} 12. Nc3 {[%emt 0:00:01]} Na5 {[%emt 0:02:13]} 13. Ba2 {[%emt 0:00:08]} c5 {[%emt 0:00:03]} 14. Nd5 {[%emt 0:00:17]} Nc6 {[%emt 0:00:05]} 15. Nxf6+ {[%emt 0:01:33][%mdl 64] Remove Defender} Qxf6 {[%emt 0:00:03]} 16. Bd5 {[%emt 0:00:05] Prevents Be6.} Bd7 {[%emt 0:00:09]} 17. Nh2 {[%emt 0:00:31] [#]} Qg6 $146 {[%emt 0:02:33]} (17... Rab8 $14) ({Predecessor:} 17... Rac8 18. Re3 Be6 19. Rg3 Kh7 20. Ng4 Qh4 21. Ne3 g6 22. a4 b4 23. c3 Bg7 {½-½ Tan,J (2507)-Brouwer,D (2215) NED-chT 1920 2019 (4.3)}) 18. Re3 $1 $16 {[%emt 0:00:09]} Rac8 {[%emt 0:01:05]} 19. Rg3 $1 {[%emt 0:00:32]} Qh7 {[%emt 0:00:02] [#]} 20. Ng4 $1 {[%emt 0:01:27]} Bxg4 {[%emt 0:00:01]} 21. hxg4 {[%emt 0:00:10]} (21. Qxg4 {seems wilder.} Rc7 22. Qh5 Nd4 23. c3) 21... Be7 {[%emt 0:00:35] Black is weak on the light squares} 22. c3 {[%emt 0:01:06]} ({Don't take} 22. Qf3 Qg6 $14) 22... Qg6 {[%emt 0:00:14]} 23. Qf3 {[%emt 0:00:03]} Bg5 {[%emt 0:01:21]} 24. Bxg5 {[%emt 0:00:04]} hxg5 {[%emt 0:00:00]} 25. Rh3 {[%emt 0:00:01][%cal Od5f7]} Nd8 {[%emt 0:00:49]} (25... Qf6 $142) 26. g3 {[%emt 0:00:18]} Ne6 {[%emt 0:00:04]} 27. Kg2 {[%emt 0:00:16]} Kf8 {[%emt 0:00:01]} (27... Qf6 $16) 28. Rah1 {[%emt 0:00:02]} (28. a4 $18) 28... Ke7 {[%emt 0:00:00]} 29. Rh7 {[%emt 0:00:09]} Qf6 {[%emt 0:00:03]} 30. Qe3 {[%emt 0:00:15] White leaves nothing to chance now.} g6 {[%emt 0:00:04]} 31. b4 {[%emt 0:00:14]} Rf8 {[%emt 0:00:09]} 32. Qd2 {[%emt 0:00:27] White is much more active.} Rh8 {[%emt 0:00:02]} (32... Nc7 $16) 33. bxc5 $18 {[%emt 0:00:38]} dxc5 {[%emt 0:00:02]} 34. Bxe6 {[%emt 0:00:08]} Kxe6 {[%emt 0:00:06]} (34... Rxh7 $142 35. Bxc8 Rxh1 36. Kxh1 Qh8+ 37. Kg2 Qxc8) 35. Qa2+ {[%emt 0:00:03]} Ke7 {[%emt 0:00:01] [#]} (35... c4 $2 36. Rxh8 Rxh8 37. Rxh8 Qxh8 38. dxc4 $18) 36. Rxh8 {[%emt 0:00:09]} ({Weaker is} 36. Qd5 Rhf8 $14) 36... Rxh8 {[%emt 0:00:00]} 37. Rxh8 {[%emt 0:00:01]} Qxh8 {[%emt 0:00:00][%mdl 4096] Endgame KQ-KQ} 38. Qd5 {[%emt 0:00:00]} c4 {[%emt 0:00:06]} (38... Qb8 39. Qxc5+ Qd6 40. Qxd6+ Kxd6) 39. dxc4 {[%emt 0:00:07]} (39. Qb7+ $142 Kf8 40. dxc4 bxc4 41. Qxa6) 39... bxc4 $2 {[%emt 0:00:01]} (39... Qb8 40. c5 Qc7) 40. Qb7+ {[%emt 0:00:03]} ({Less strong is} 40. Qxc4 Qa8 41. Kf3 f5 42. gxf5 gxf5 $18) 40... Kf6 {[%emt 0:00:03]} 41. Qxa6+ {[%emt 0:00:01]} Kg7 {[%emt 0:00:00]} 42. Qxc4 {[%emt 0:00:00] Qc6 is the strong threat.} Qa8 {[%emt 0:00:03] Dodges Qc6} 43. a4 {[%emt 0:00:04][%cal Ba3a4,Ba4a5,Ba5a6][%mdl 32]} Qa5 {[%emt 0:00:01]} (43... Kh8 $142 44. Kf3 f5) 44. Qb4 {[%emt 0:00:03]} (44. Qb5 $142 Qa8 45. Qxe5+ Kh7 46. a5) 44... Qa8 {[%emt 0:00:01]} 45. a5 {[%emt 0:00:02]} Kh6 {[%emt 0:00:05]} 46. Kg1 {[%emt 0:00:14] Black must now prevent Qb6.} Qd8 {[%emt 0:00:05]} 47. a6 {[%emt 0:00:03]} Qd1+ {[%emt 0:00:01]} 48. Kg2 {[%emt 0:00:01]} Qd7 {[%emt 0:00:04] Weighted Error Value: White=0.24 (precise) /Black=0.39} 1-0

[Event "CCT Airthings Masters Play-In 2023"]
[Site "Online"]
[Date "2023.02.03"]
[Round "2"]
[White "Matibar"]
[Black "Jospem"]
[Result "1/2-1/2"]
[ECO "C42"]
[WhiteElo "2499"]
[BlackElo "2646"]
[Annotator "TA"]
[PlyCount "68"]
[EventDate "2023.02.03"]
[EventType "swiss"]
[EventCountry "NET"]
[SourceTitle "playchess.com"]
[Source "ChessBase"]
[SourceQuality "1"]
[TimeControl "600+2"]

{[%evp 9,68,29,35,22,25,11,4,0,7,0,8,-22,-6,-50,-18,-31,-42,-43,-35,-39,-20,-24,-8,-9,-4,-10,-5,-22,-6,-22,0,0,0,0,4,0,0,-16,0,-10,0,0,0,-10,0,-6,0,-7,-8,-4,-7,-9,-13,-17,0,0,0,-23,0,-4,0]} 1. e4 {[%emt 0:00:10]} e5 {[%emt 0:00:05]} 2. Nf3 {[%emt 0:00:02]} Nf6 {[%emt 0:00:00]} 3. Nxe5 {[%emt 0:00:38]} d6 {[%emt 0:00:04]} 4. Nf3 {[%emt 0:00:07]} Nxe4 {[%emt 0:00:02]} 5. Bd3 {[%emt 0:00:02]} d5 {[%emt 0:00:27]} 6. O-O {[%emt 0:00:18] C42: Petroff Defence: 3 Nxe5 and unusual White 3rd moves.} Be7 {[%emt 0:00:02]} 7. Nc3 {[%emt 0:00:07]} Nf6 {[%emt 0:00:19]} 8. h3 {[%emt 0:00:09]} O-O {[%emt 0:00:03] [#]} 9. Ne2 $146 {[%emt 0:01:02]} ({Predecessor:} 9. Re1 c5 10. b3 d4 11. Ne4 Nc6 12. Bb2 Nb4 13. Nxf6+ Bxf6 14. Be4 d3 15. Bxf6 dxc2 16. Bxd8 cxd1=Q 17. Raxd1 Rxd8 {1-0 Simon,L (2007)-Vamosi,L (1980) Eger Osz op 2009 (7)}) 9... c5 {[%emt 0:00:36] [#] Hoping for ...c4.} 10. Ng3 {[%emt 0:00:16]} Nc6 {[%emt 0:00:09]} 11. Bb5 {[%emt 0:00:17]} Ne4 {[%emt 0:00:53]} 12. d3 {[%emt 0:00:46]} Nxg3 {[%emt 0:00:09]} 13. fxg3 {[%emt 0:00:00]} Qb6 {[%emt 0:00:04]} 14. Bxc6 {[%emt 0:00:02]} Qxc6 {[%emt 0:00:04]} 15. Bf4 {[%emt 0:00:12]} f6 {[%emt 0:00:50]} 16. g4 {[%emt 0:00:06]} Bd7 {[%emt 0:00:07]} 17. Qd2 {[%emt 0:00:06]} Rae8 {[%emt 0:00:05]} 18. b3 {[%emt 0:00:08]} Bd8 {[%emt 0:00:40]} 19. a4 {[%emt 0:00:13]} Re6 {[%emt 0:00:49]} 20. Rae1 {[%emt 0:00:04]} Rxe1 {[%emt 0:00:06]} 21. Rxe1 {[%emt 0:00:02]} Re8 {[%emt 0:00:01]} 22. Rxe8+ {[%emt 0:00:07]} Bxe8 {[%emt 0:00:00]} 23. Qe2 {[%emt 0:00:10]} Bd7 {[%emt 0:00:09]} 24. Kh2 {[%emt 0:00:03]} Qe6 {[%emt 0:00:09]} 25. Qf2 {[%emt 0:00:16]} b6 {[%emt 0:00:08]} 26. Bg3 {[%emt 0:00:06]} g5 {[%emt 0:00:15]} 27. Nd2 {[%emt 0:00:19]} h6 {[%emt 0:00:33]} 28. Nf1 {[%emt 0:00:04]} f5 {[%emt 0:00:02]} 29. gxf5 {[%emt 0:00:03]} Qxf5 {[%emt 0:00:00]} 30. Qe2 {[%emt 0:00:12]} Qe6 {[%emt 0:00:04]} 31. Qf3 {[%emt 0:00:11]} Qf7 {[%emt 0:00:05]} 32. Qe2 {[%emt 0:00:04]} Qe6 {[%emt 0:00:11]} 33. Qf3 {[%emt 0:00:01]} Qf7 {[%emt 0:00:01]} 34. Qe2 {[%emt 0:00:01]} Qe6 {[%emt 0:00:01] Weighted Error Value: White=0.06 (flawless) /Black=0.07 (flawless)} 1/2-1/2

[Event "CCT Airthings Masters Play-In 2023"]
[Site "Online"]
[Date "2023.02.03"]
[Round "2"]
[White "Cardoso Cardoso, Jose Gabriel"]
[Black "Infernal_XaM"]
[Result "1-0"]
[ECO "A26"]
[WhiteElo "2498"]
[BlackElo "2595"]
[Annotator "TA"]
[PlyCount "79"]
[EventDate "2023.02.03"]
[EventType "swiss"]
[EventCountry "NET"]
[SourceTitle "playchess.com"]
[Source "ChessBase"]
[SourceQuality "1"]
[TimeControl "600+2"]

{[%evp 14,78,16,5,20,8,8,8,11,10,7,2,15,19,28,27,27,31,6,5,20,2,4,0,9,0,0,0,0,-18,0,-20,0,0,95,11,135,52,55,32,53,35,33,-35,97,81,175,178,995,995,1048,1048,5751,5714,1742,1758,29987,29988,29989,29990,29990,29991,29996,29997,29998,29999,29999]} 1. Nf3 {[%emt 0:00:03]} Nf6 {[%emt 0:00:04]} 2. c4 {[%emt 0:00:03]} g6 {[%emt 0:00:01]} 3. Nc3 {[%emt 0:00:04]} Bg7 {[%emt 0:00:02]} 4. e4 {[%emt 0:00:04]} e5 {[%emt 0:00:01]} 5. d3 {[%emt 0:00:20]} d6 {[%emt 0:00:36]} 6. g3 {[%emt 0:00:40]} O-O {[%emt 0:00:01]} 7. Bg2 {[%emt 0:00:01]} Nc6 {[%emt 0:00:01]} 8. O-O {[%emt 0:00:07] [#] 8.h3 is the fancy move.} Rb8 $146 {[%emt 0:00:01] A26: English Opening vs King's Indian with ...Nc6 and d3.} ({Predecessor:} 8... Bg4 9. h3 Bxf3 10. Bxf3 Nd7 11. Bg2 Nc5 12. f4 exf4 13. gxf4 f5 14. Be3 Bd4 15. Qd2 Qf6 16. Rae1 Qg7 {½-½ Praggnanandhaa,R (2608)-Onischuk,V (2622) Titled Tuesday intern op 16th Mar blitz 2021 (8)}) 9. Be3 {[%emt 0:00:13]} a6 {[%emt 0:00:03]} 10. Rc1 {[%emt 0:00:09]} Ng4 {[%emt 0:00:17] The position is equal.} 11. Bg5 {[%emt 0:00:12]} f6 {[%emt 0:00:01]} 12. Bd2 {[%emt 0:00:03]} f5 {[%emt 0:00:00]} 13. Nd5 {[%emt 0:00:50]} Nf6 {[%emt 0:00:06]} 14. Bg5 {[%emt 0:00:25]} fxe4 {[%emt 0:00:24]} 15. dxe4 {[%emt 0:00:07]} Bg4 {[%emt 0:00:01]} 16. h3 {[%emt 0:00:17]} Bxf3 {[%emt 0:00:02]} 17. Bxf3 {[%emt 0:00:09]} Nd4 {[%emt 0:00:00] ...Nxf3+ is the strong threat.} 18. Bg2 {[%emt 0:00:03]} c6 {[%emt 0:00:02]} 19. Nxf6+ {[%emt 0:00:07]} Bxf6 {[%emt 0:00:01]} 20. Be3 {[%emt 0:00:01]} c5 {[%emt 0:00:17]} 21. Bxd4 {[%emt 0:00:15]} exd4 {[%emt 0:00:06]} 22. f4 {[%emt 0:00:08][%cal Ob2b4]} b5 {[%emt 0:00:02]} (22... Qa5 $5 {[%cal Ra5a2]}) 23. b3 {[%emt 0:00:05]} g5 {[%emt 0:00:06]} (23... Qd7 $11) 24. Qg4 {[%emt 0:00:09] Black is weak on the light squares} ({White should try} 24. e5 $1 $16 {[%cal Re5f6]} dxe5 25. fxg5) 24... Kh8 {[%emt 0:00:02] [#]} (24... Qc8 $11) 25. fxg5 {[%emt 0:00:06] White is more active.} ({White should play} 25. e5 $1 $16 {[%cal Re5f6]} Bg7 26. Be4 (26. Qxg5 Qxg5 27. fxg5 Bxe5 $11) (26. fxg5 Bxe5 27. Rxf8+ Qxf8 $14)) 25... Be5 $14 {[%emt 0:00:08]} 26. Rf5 {[%emt 0:00:15]} bxc4 {[%emt 0:00:07]} 27. Rxc4 {[%emt 0:00:04]} Qa5 {[%emt 0:00:28] Strongly threatening ...Rxf5.} 28. g6 {[%emt 0:01:13]} (28. Rc1 $14) 28... Qe1+ {[%emt 0:00:03]} (28... Qxa2 29. Qh5 Qb1+ 30. Bf1) (28... Rg8 $1 $15 {stays ahead.} 29. Rxe5 dxe5) 29. Kh2 $16 {[%emt 0:00:01][%cal Of5e5] Hoping for Rxe5!} Rxf5 {[%emt 0:00:02]} (29... Rg8 $16 30. Rxe5 dxe5) 30. exf5 $40 {[%emt 0:00:02][%mdl 128] White attacks with force.} d3 $2 {[%emt 0:00:23] [#]} (30... Kg7 31. Ra4 h5) 31. f6 $1 {[%emt 0:00:23][%mdl 512]} Bxf6 {[%emt 0:00:25] [#]} 32. Re4 $1 {[%emt 0:00:05]} d2 {[%emt 0:00:13]} 33. Qh5 {[%emt 0:00:06][%csl Gg6][%cal Rh5h7]} Rb7 {[%emt 0:00:03]} 34. Qf5 {[%emt 0:01:07]} Kg7 {[%emt 0:00:21]} 35. gxh7 {[%emt 0:00:04] White mates.} d1=Q {[%emt 0:00:15] [#]} 36. Qxf6+ $3 {[%emt 0:00:17][%mdl 576] Deflection, Promotion} Kxf6 {[%emt 0:00:04]} 37. h8=Q+ {[%emt 0:00:02]} (37. h8=R $2 Qg1#) 37... Rg7 {[%emt 0:00:03]} 38. Qh6+ {[%emt 0:00:06]} ({Not} 38. Rxe1 Qxe1 39. Qf8+ (39. Qh6+ Rg6 $16) 39... Rf7 40. Qxd6+ Kg7 $16) 38... Kf7 {[%emt 0:00:12]} 39. Qe6+ {[%emt 0:00:02]} Kf8 {[%emt 0:00:02]} 40. Qe8# {[%emt 0:00:01] Ingenious play by Cardoso Cardoso!   Weighted Error Value: White=0.15 (very precise) /Black=0.42} 1-0